[Event "Live Chess"]
[Site "Chess.com"]
[Date "2023.05.20"]
[Round "-"]
[White "bedsdrout"]
[Black "Richardallis"]
[Result "0-1"]
[WhiteElo "384"]
[BlackElo "1677"]
[TimeControl "300"]
[EndTime "11:13:33 PDT"]
[Termination "Richardallis won by checkmate"]

1. e4 {[%clk 0:04:58]} 1... d5 {[%clk 0:04:58.8]} 2. Nc3 {[%clk 0:04:49.1]} 2...
d4 {[%clk 0:04:57.5]} 3. Nd5 {[%clk 0:04:34.8]} 3... c6 {[%clk 0:04:55.6]} 4.
Bc4 {[%clk 0:04:30.8]} 4... cxd5 {[%clk 0:04:54.3]} 5. Bb3 {[%clk 0:04:26.7]}
5... dxe4 {[%clk 0:04:51.8]} 6. Qh5 {[%clk 0:04:23]} 6... e6 {[%clk 0:04:42.9]}
7. d3 {[%clk 0:03:48]} 7... Nf6 {[%clk 0:04:41]} 8. Qh4 {[%clk 0:03:43.7]} 8...
exd3 {[%clk 0:04:38.9]} 9. Nf3 {[%clk 0:03:26]} 9... dxc2 {[%clk 0:04:37]} 10.
Bxc2 {[%clk 0:03:08.6]} 10... Nc6 {[%clk 0:04:33.5]} 11. Bd2 {[%clk 0:02:55.5]}
11... d3 {[%clk 0:04:29.9]} 12. Bxd3 {[%clk 0:02:53.4]} 12... Qxd3 {[%clk
0:04:26.2]} 13. Kd1 {[%clk 0:02:37.3]} 13... Bb4 {[%clk 0:04:23]} 14. Rc1 {[%clk
0:02:02.6]} 14... Bxd2 {[%clk 0:04:20.4]} 15. Nxd2 {[%clk 0:01:53.4]} 15... Nd4
{[%clk 0:04:14.3]} 16. Re1 {[%clk 0:01:40.6]} 16... O-O {[%clk 0:04:08.5]} 17.
Rc7 {[%clk 0:01:09.3]} 17... Rd8 {[%clk 0:03:58.9]} 18. Kc1 {[%clk 0:00:51.7]}
18... Ne2+ {[%clk 0:03:54.3]} 19. Rxe2 {[%clk 0:00:48.7]} 19... Qxe2 {[%clk
0:03:52.7]} 20. Kc2 {[%clk 0:00:47.3]} 20... Qxd2+ {[%clk 0:03:51.2]} 21. Kb3
{[%clk 0:00:36]} 21... Qd1+ {[%clk 0:03:48.7]} 22. Kc3 {[%clk 0:00:15.1]} 22...
Nd5+ {[%clk 0:03:44.1]} 23. Kc4 {[%clk 0:00:09.6]} 23... b5+ {[%clk 0:03:42.1]}
24. Kc5 {[%clk 0:00:07.2]} 24... Nxc7 {[%clk 0:03:40.5]} 25. Qb4 {[%clk
0:00:03]} 25... Qd6# {[%clk 0:03:36.1]} 0-1

[Event "Live Chess"]
[Site "Chess.com"]
[Date "2023.05.20"]
[Round "-"]
[White "booktrunk"]
[Black "Vladyslav2008"]
[Result "0-1"]
[WhiteElo "1335"]
[BlackElo "2173"]
[TimeControl "300"]
[EndTime "11:13:34 PDT"]
[Termination "Vladyslav2008 won by resignation"]

1. d4 {[%clk 0:04:58.7]} 1... Nf6 {[%clk 0:04:57.4]} 2. c3 {[%clk 0:04:56.6]}
2... c5 {[%clk 0:04:54.2]} 3. Nf3 {[%clk 0:04:56.5]} 3... g6 {[%clk 0:04:52.7]}
4. dxc5 {[%clk 0:04:55.2]} 4... Bg7 {[%clk 0:04:51.6]} 5. Be3 {[%clk 0:04:49.4]}
5... O-O {[%clk 0:04:49.5]} 6. h3 {[%clk 0:04:46.1]} 6... Qc7 {[%clk 0:04:45]}
7. Bd4 {[%clk 0:04:39.3]} 7... Nc6 {[%clk 0:04:42.4]} 8. Be3 {[%clk 0:04:36.2]}
8... Ne4 {[%clk 0:04:39.1]} 9. Nbd2 {[%clk 0:04:26.2]} 9... Ng3 {[%clk
0:04:31.5]} 10. fxg3 {[%clk 0:04:23.5]} 10... Qxg3+ {[%clk 0:04:28.5]} 11. Bf2
{[%clk 0:04:22.9]} 11... Qc7 {[%clk 0:04:27.5]} 12. Qc2 {[%clk 0:04:19.9]} 12...
d6 {[%clk 0:04:25]} 13. cxd6 {[%clk 0:04:18.5]} 13... exd6 {[%clk 0:04:23.9]}
14. O-O-O {[%clk 0:04:16.7]} 14... Be6 {[%clk 0:04:22.4]} 15. e4 {[%clk
0:04:12.3]} 15... Rac8 {[%clk 0:04:18.7]} 16. Bc4 {[%clk 0:04:09.8]} 16... Bxc4
{[%clk 0:04:08.7]} 17. Nxc4 {[%clk 0:04:08]} 17... Rfd8 {[%clk 0:04:06.8]} 18.
Bg3 {[%clk 0:03:53.9]} 18... b5 {[%clk 0:04:02.5]} 19. Nxd6 {[%clk 0:03:49.7]}
19... Nb4 {[%clk 0:03:55.1]} 20. Qb3 {[%clk 0:03:40.8]} 20... Nxa2+ {[%clk
0:03:53.9]} 21. Qxa2 {[%clk 0:03:38.4]} 21... Bxc3 {[%clk 0:03:52.3]} 22. Nxc8
{[%clk 0:03:20.6]} 22... Be5+ {[%clk 0:03:41.7]} 23. Kb1 {[%clk 0:03:16.9]}
23... Bxg3 {[%clk 0:03:40.4]} 24. Rxd8+ {[%clk 0:03:11.6]} 24... Qxd8 {[%clk
0:03:38.9]} 25. Nxa7 {[%clk 0:03:09.7]} 25... Qd3+ {[%clk 0:03:38.5]} 26. Ka1
{[%clk 0:03:08.1]} 26... Qxe4 {[%clk 0:03:38.1]} 27. Qb3 {[%clk 0:03:00.3]}
27... Qa8 {[%clk 0:03:34.9]} 28. Qxb5 {[%clk 0:02:47.3]} 28... Qxa7+ {[%clk
0:03:32.9]} 29. Kb1 {[%clk 0:02:46.6]} 29... Qf2 {[%clk 0:03:31]} 30. Qe8+
{[%clk 0:02:40.6]} 30... Kg7 {[%clk 0:03:29]} 31. Qe1 {[%clk 0:02:38.4]} 31...
Qxg2 {[%clk 0:03:26.2]} 32. Rg1 {[%clk 0:02:34.7]} 32... Qxf3 {[%clk 0:03:20.4]}
33. Rxg3 {[%clk 0:02:31.7]} 33... Qf5+ {[%clk 0:03:19.6]} 34. Kc1 {[%clk
0:02:23.3]} 34... h5 {[%clk 0:03:17.5]} 35. Qc3+ {[%clk 0:02:21.4]} 35... Kh7
{[%clk 0:03:15.8]} 36. Rf3 {[%clk 0:02:18.5]} 36... Qg5+ {[%clk 0:03:13.7]} 37.
Qd2 {[%clk 0:02:15.8]} 37... Qc5+ {[%clk 0:03:12]} 38. Kb1 {[%clk 0:02:13.7]}
38... Qe7 {[%clk 0:02:59.3]} 39. Qe3 {[%clk 0:02:08]} 39... Qb7 {[%clk
0:02:56.7]} 40. Qb3 {[%clk 0:01:58.5]} 40... Qe4+ {[%clk 0:02:51.9]} 41. Ka1
{[%clk 0:01:47.5]} 41... Qa8+ {[%clk 0:02:49.7]} 42. Qa2 {[%clk 0:01:46.5]}
42... Qxf3 {[%clk 0:02:43.7]} 0-1

[Event "Live Chess"]
[Site "Chess.com"]
[Date "2023.05.20"]
[Round "-"]
[White "FlyingChessKestrel13"]
[Black "BillythekidFellowes"]
[Result "0-1"]
[WhiteElo "2128"]
[BlackElo "2011"]
[TimeControl "300"]
[EndTime "11:13:40 PDT"]
[Termination "BillythekidFellowes won by resignation"]

1. e4 {[%clk 0:04:57.7]} 1... Nc6 {[%clk 0:04:54.3]} 2. d4 {[%clk 0:04:52.1]}
2... d5 {[%clk 0:04:53]} 3. e5 {[%clk 0:04:51]} 3... Bf5 {[%clk 0:04:46.2]} 4.
Bd3 {[%clk 0:04:49.7]} 4... Nxd4 {[%clk 0:04:42.7]} 5. Bxf5 {[%clk 0:04:43.5]}
5... Nxf5 {[%clk 0:04:42.6]} 6. g4 {[%clk 0:04:42]} 6... Nh4 {[%clk 0:04:33.5]}
7. Bg5 {[%clk 0:04:38.4]} 7... Ng6 {[%clk 0:04:30.6]} 8. Nf3 {[%clk 0:04:30]}
8... h6 {[%clk 0:04:21.3]} 9. Be3 {[%clk 0:04:26.5]} 9... e6 {[%clk 0:04:18.6]}
10. Nc3 {[%clk 0:04:24.3]} 10... c5 {[%clk 0:04:02.2]} 11. Bd2 {[%clk
0:04:22.3]} 11... Qc7 {[%clk 0:03:58.8]} 12. Qe2 {[%clk 0:04:20.1]} 12... N8e7
{[%clk 0:03:40.7]} 13. Nb5 {[%clk 0:04:15.5]} 13... Qb6 {[%clk 0:03:31.2]} 14.
Nd6+ {[%clk 0:04:13.9]} 14... Kd7 {[%clk 0:03:30.7]} 15. Nxf7 {[%clk 0:04:10.4]}
15... Rg8 {[%clk 0:03:29.9]} 16. O-O {[%clk 0:04:05.6]} 16... Nc6 {[%clk
0:03:24.4]} 17. a4 {[%clk 0:04:01.2]} 17... Be7 {[%clk 0:03:19]} 18. a5 {[%clk
0:03:59.1]} 18... Qc7 {[%clk 0:03:15.5]} 19. g5 {[%clk 0:03:47.6]} 19... Raf8
{[%clk 0:03:01.1]} 20. Nd6 {[%clk 0:03:44]} 20... Bxd6 {[%clk 0:02:59.9]} 21.
exd6 {[%clk 0:03:43.2]} 21... Qxd6 {[%clk 0:02:59.8]} 22. Rfe1 {[%clk
0:03:35.8]} 22... e5 {[%clk 0:02:28.2]} 23. Be3 {[%clk 0:02:51.5]} 23... e4
{[%clk 0:02:25.6]} 24. Nd2 {[%clk 0:02:50.4]} 24... Nce5 {[%clk 0:02:21.3]} 25.
c4 {[%clk 0:02:48]} 25... Nh4 {[%clk 0:02:09.6]} 26. cxd5 {[%clk 0:02:36]} 26...
Nef3+ {[%clk 0:02:06.6]} 27. Nxf3 {[%clk 0:02:31.4]} 27... Nxf3+ {[%clk
0:01:37.3]} 28. Kf1 {[%clk 0:02:29.6]} 28... Nxh2+ {[%clk 0:01:35.9]} 29. Kg1
{[%clk 0:02:28.5]} 29... Nf3+ {[%clk 0:01:35]} 30. Kf1 {[%clk 0:02:27.7]} 30...
Qh2 {[%clk 0:01:32.9]} 31. Qb5+ {[%clk 0:02:26.2]} 31... Kc8 {[%clk 0:01:30.3]}
32. a6 {[%clk 0:02:12.4]} 32... b6 {[%clk 0:01:07.2]} 33. Qc6+ {[%clk
0:02:07.4]} 33... Qc7 {[%clk 0:01:04.6]} 34. Qxc7+ {[%clk 0:01:56.3]} 34... Kxc7
{[%clk 0:01:03.1]} 35. Red1 {[%clk 0:01:55.8]} 35... Kd6 {[%clk 0:01:01.2]} 36.
gxh6 {[%clk 0:01:50.7]} 36... gxh6 {[%clk 0:00:59.5]} 37. Ke2 {[%clk 0:01:49.7]}
37... h5 {[%clk 0:00:57.2]} 38. b4 {[%clk 0:01:42.3]} 38... c4 {[%clk
0:00:48.5]} 39. b5 {[%clk 0:01:39.5]} 39... h4 {[%clk 0:00:42.5]} 40. Rac1
{[%clk 0:01:38.2]} 40... Rc8 {[%clk 0:00:41.1]} 41. Bf4+ {[%clk 0:01:36.8]}
41... Kd7 {[%clk 0:00:38.9]} 42. Ke3 {[%clk 0:01:32.1]} 42... h3 {[%clk
0:00:33.5]} 43. Kxe4 {[%clk 0:01:30.3]} 43... Ng5+ {[%clk 0:00:24.2]} 44. Bxg5
{[%clk 0:01:28.7]} 44... Rxg5 {[%clk 0:00:24.1]} 45. f4 {[%clk 0:01:26.8]} 45...
Rg2 {[%clk 0:00:21.6]} 46. Rh1 {[%clk 0:01:21.4]} 46... h2 {[%clk 0:00:20.7]}
47. Kf3 {[%clk 0:01:20.6]} 47... Ra2 {[%clk 0:00:19.4]} 48. Kg3 {[%clk
0:01:14.3]} 48... c3 {[%clk 0:00:18.8]} 49. f5 {[%clk 0:01:05.3]} 49... Kd6
{[%clk 0:00:18.5]} 50. f6 {[%clk 0:01:03.7]} 50... Kxd5 {[%clk 0:00:17.8]} 51.
f7 {[%clk 0:01:03]} 51... Ke6 {[%clk 0:00:17.2]} 52. Rxh2 {[%clk 0:00:58.6]}
52... Rxh2 {[%clk 0:00:17.1]} 53. Kxh2 {[%clk 0:00:57.6]} 53... Kxf7 {[%clk
0:00:17]} 54. Kg3 {[%clk 0:00:57]} 54... Ke6 {[%clk 0:00:16.9]} 55. Kf3 {[%clk
0:00:56.5]} 55... Kd5 {[%clk 0:00:16.8]} 56. Ke3 {[%clk 0:00:56.2]} 56... Kc4
{[%clk 0:00:16.7]} 57. Rb1 {[%clk 0:00:53.1]} 57... c2 {[%clk 0:00:15.8]} 58.
Rc1 {[%clk 0:00:52.6]} 58... Kc3 {[%clk 0:00:15.7]} 59. Ke2 {[%clk 0:00:51.8]}
59... Kb2 {[%clk 0:00:15.1]} 0-1

[Event "Live Chess"]
[Site "Chess.com"]
[Date "2023.05.20"]
[Round "-"]
[White "YF22Raptor"]
[Black "LodeshChess"]
[Result "1/2-1/2"]
[WhiteElo "1010"]
[BlackElo "959"]
[TimeControl "300"]
[EndTime "11:13:40 PDT"]
[Termination "Game drawn by repetition"]

1. e4 {[%clk 0:04:58.9]} 1... c6 {[%clk 0:04:59.3]} 2. Nf3 {[%clk 0:04:57.7]}
2... d5 {[%clk 0:04:58.4]} 3. exd5 {[%clk 0:04:56.8]} 3... cxd5 {[%clk
0:04:58.1]} 4. Nc3 {[%clk 0:04:55.4]} 4... Bg4 {[%clk 0:04:56.1]} 5. h3 {[%clk
0:04:54.3]} 5... Bxf3 {[%clk 0:04:55.1]} 6. Qxf3 {[%clk 0:04:53.7]} 6... e6
{[%clk 0:04:54.7]} 7. Bb5+ {[%clk 0:04:48.2]} 7... Nc6 {[%clk 0:04:52.8]} 8. d4
{[%clk 0:04:47.1]} 8... Bb4 {[%clk 0:04:49.9]} 9. Bxc6+ {[%clk 0:04:45.5]} 9...
bxc6 {[%clk 0:04:48.3]} 10. Bd2 {[%clk 0:04:45.2]} 10... Nf6 {[%clk 0:04:46.3]}
11. a3 {[%clk 0:04:43.8]} 11... Ba5 {[%clk 0:04:45.5]} 12. b4 {[%clk 0:04:42.8]}
12... Bc7 {[%clk 0:04:45.1]} 13. Na4 {[%clk 0:04:38.8]} 13... Qd6 {[%clk
0:04:41.7]} 14. Nc5 {[%clk 0:04:37]} 14... O-O {[%clk 0:04:40.3]} 15. g3 {[%clk
0:04:35.5]} 15... Nd7 {[%clk 0:04:25.9]} 16. Bf4 {[%clk 0:04:30.1]} 16... Qe7
{[%clk 0:04:19.1]} 17. Bxc7 {[%clk 0:04:23.6]} 17... Nxc5 {[%clk 0:04:18]} 18.
dxc5 {[%clk 0:04:21.1]} 18... Qxc7 {[%clk 0:04:16.9]} 19. O-O {[%clk 0:04:15.4]}
19... a5 {[%clk 0:04:15.6]} 20. c3 {[%clk 0:04:13.7]} 20... a4 {[%clk
0:04:05.4]} 21. Rac1 {[%clk 0:04:07.3]} 21... Qc8 {[%clk 0:04:04]} 22. c4 {[%clk
0:03:55.7]} 22... e5 {[%clk 0:04:01.4]} 23. cxd5 {[%clk 0:03:53]} 23... cxd5
{[%clk 0:04:00.4]} 24. Qxd5 {[%clk 0:03:52]} 24... Qxh3 {[%clk 0:03:59.1]} 25.
Qxe5 {[%clk 0:03:46.4]} 25... Rfe8 {[%clk 0:03:55.1]} 26. Qc7 {[%clk 0:03:34.7]}
26... Re6 {[%clk 0:03:36.9]} 27. Qb7 {[%clk 0:03:28.5]} 27... Rae8 {[%clk
0:03:32.9]} 28. Qg2 {[%clk 0:03:25.4]} 28... Qg4 {[%clk 0:03:18.1]} 29. c6
{[%clk 0:03:20.1]} 29... Rc8 {[%clk 0:03:13.5]} 30. b5 {[%clk 0:03:15.9]} 30...
Qd4 {[%clk 0:03:00.7]} 31. Rfd1 {[%clk 0:03:01.2]} 31... Qb6 {[%clk 0:02:58.9]}
32. Rb1 {[%clk 0:02:55.6]} 32... Re2 {[%clk 0:02:38.6]} 33. Qh3 {[%clk 0:02:48]}
33... Qxf2+ {[%clk 0:02:23.6]} 34. Kh1 {[%clk 0:02:46.3]} 34... Qf3+ {[%clk
0:02:14.2]} 35. Kg1 {[%clk 0:02:40.5]} 35... Qf2+ {[%clk 0:01:47.6]} 36. Kh1
{[%clk 0:02:38.1]} 36... Qf3+ {[%clk 0:01:46.9]} 37. Kg1 {[%clk 0:02:33.9]}
37... Qf2+ {[%clk 0:01:46.1]} 1/2-1/2

[Event "Live Chess"]
[Site "Chess.com"]
[Date "2023.05.20"]
[Round "-"]
[White "WelshTiger"]
[Black "TobyQuaite"]
[Result "1-0"]
[WhiteElo "2431"]
[BlackElo "1695"]
[TimeControl "300"]
[EndTime "11:13:45 PDT"]
[Termination "WelshTiger won by resignation"]

1. e4 {[%clk 0:04:58.7]} 1... e6 {[%clk 0:04:58.9]} 2. d3 {[%clk 0:04:57.7]}
2... d5 {[%clk 0:04:55.9]} 3. Nd2 {[%clk 0:04:57.6]} 3... Nf6 {[%clk 0:04:53]}
4. Ngf3 {[%clk 0:04:57]} 4... c5 {[%clk 0:04:45.8]} 5. g3 {[%clk 0:04:55.5]}
5... Nc6 {[%clk 0:04:44.3]} 6. Bg2 {[%clk 0:04:54.3]} 6... e5 {[%clk 0:04:38.8]}
7. O-O {[%clk 0:04:52.2]} 7... d4 {[%clk 0:04:38]} 8. Nc4 {[%clk 0:04:44.3]}
8... Qc7 {[%clk 0:04:29.6]} 9. a4 {[%clk 0:04:42.8]} 9... a6 {[%clk 0:04:28.5]}
10. a5 {[%clk 0:04:41.5]} 10... Be7 {[%clk 0:04:25.3]} 11. Bg5 {[%clk
0:04:34.2]} 11... Be6 {[%clk 0:04:24.1]} 12. Nb6 {[%clk 0:04:32.6]} 12... h6
{[%clk 0:04:22.1]} 13. Nxa8 {[%clk 0:04:30.6]} 1-0

[Event "Live Chess"]
[Site "Chess.com"]
[Date "2023.05.20"]
[Round "-"]
[White "CocheseUK"]
[Black "RoaringKnights"]
[Result "0-1"]
[WhiteElo "1106"]
[BlackElo "966"]
[TimeControl "300"]
[EndTime "11:13:54 PDT"]
[Termination "RoaringKnights won on time"]

1. e4 {[%clk 0:04:57.9]} 1... c6 {[%clk 0:04:58.6]} 2. d4 {[%clk 0:04:55.6]}
2... d5 {[%clk 0:04:57.5]} 3. e5 {[%clk 0:04:53.4]} 3... Bf5 {[%clk 0:04:56.1]}
4. Bd3 {[%clk 0:04:48.6]} 4... Bxd3 {[%clk 0:04:54.6]} 5. Qxd3 {[%clk 0:04:46]}
5... e6 {[%clk 0:04:53.9]} 6. Nf3 {[%clk 0:04:41.8]} 6... c5 {[%clk 0:04:52.9]}
7. c3 {[%clk 0:04:38]} 7... c4 {[%clk 0:04:51.8]} 8. Qc2 {[%clk 0:04:34.8]} 8...
Nc6 {[%clk 0:04:48]} 9. Bf4 {[%clk 0:04:24.9]} 9... Nge7 {[%clk 0:04:20.4]} 10.
O-O {[%clk 0:04:22]} 10... Ng6 {[%clk 0:04:00.4]} 11. Bg3 {[%clk 0:04:19.4]}
11... Be7 {[%clk 0:03:58.9]} 12. Nbd2 {[%clk 0:04:14.5]} 12... Bh4 {[%clk
0:03:55.2]} 13. Nxh4 {[%clk 0:04:06.2]} 13... Nxh4 {[%clk 0:03:53.8]} 14. f4
{[%clk 0:03:52.9]} 14... Nf5 {[%clk 0:03:49.4]} 15. Bf2 {[%clk 0:03:43.7]} 15...
b5 {[%clk 0:03:34.9]} 16. g4 {[%clk 0:03:42.1]} 16... Nh6 {[%clk 0:03:20.9]} 17.
h3 {[%clk 0:03:30.4]} 17... b4 {[%clk 0:03:09.8]} 18. Nf3 {[%clk 0:03:23.3]}
18... bxc3 {[%clk 0:02:53.1]} 19. bxc3 {[%clk 0:03:21.1]} 19... Rb8 {[%clk
0:02:42.7]} 20. Rfb1 {[%clk 0:03:15.5]} 20... Rxb1+ {[%clk 0:02:34.5]} 21. Rxb1
{[%clk 0:03:12]} 21... O-O {[%clk 0:02:22]} 22. Rb7 {[%clk 0:02:39.8]} 22... f6
{[%clk 0:02:15.1]} 23. Bh4 {[%clk 0:02:32]} 23... Qc8 {[%clk 0:02:00.9]} 24.
Rxg7+ {[%clk 0:02:19.6]} 24... Kxg7 {[%clk 0:01:45.2]} 25. Bxf6+ {[%clk
0:02:13.1]} 25... Kg8 {[%clk 0:01:37.5]} 26. Ng5 {[%clk 0:02:10.1]} 26... Rf7
{[%clk 0:01:24.8]} 27. Nxf7 {[%clk 0:02:00.3]} 27... Kxf7 {[%clk 0:01:23.2]} 28.
Qxh7+ {[%clk 0:01:56.1]} 28... Ke8 {[%clk 0:01:20.7]} 29. Qxh6 {[%clk
0:01:51.4]} 29... Kd7 {[%clk 0:01:15.4]} 30. Qg7+ {[%clk 0:01:48.1]} 30... Ke8
{[%clk 0:01:14.1]} 31. Qg8+ {[%clk 0:01:33.7]} 31... Kd7 {[%clk 0:01:12.8]} 32.
Qxc8+ {[%clk 0:01:31.8]} 32... Kxc8 {[%clk 0:01:12.1]} 33. g5 {[%clk 0:01:30.6]}
33... Nxd4 {[%clk 0:00:54.3]} 34. g6 {[%clk 0:01:04.8]} 34... Nf5 {[%clk
0:00:52.8]} 35. h4 {[%clk 0:00:57.9]} 35... Kd7 {[%clk 0:00:48]} 36. g7 {[%clk
0:00:56.3]} 36... Nxg7 {[%clk 0:00:43.6]} 37. Bxg7 {[%clk 0:00:53]} 37... Ke7
{[%clk 0:00:42.6]} 38. h5 {[%clk 0:00:52]} 38... Kf7 {[%clk 0:00:41.8]} 39. h6
{[%clk 0:00:51.1]} 39... Kg8 {[%clk 0:00:39.9]} 40. Kf2 {[%clk 0:00:50.4]} 40...
Kh7 {[%clk 0:00:33.4]} 41. Ke3 {[%clk 0:00:49]} 41... Kg6 {[%clk 0:00:29.7]} 42.
Kd4 {[%clk 0:00:42.9]} 42... Kh7 {[%clk 0:00:22.6]} 43. Kc5 {[%clk 0:00:22]}
43... Kg6 {[%clk 0:00:20]} 44. Kb4 {[%clk 0:00:16.9]} 44... Kf7 {[%clk
0:00:16.9]} 45. Ka3 {[%clk 0:00:16.2]} 45... Kg6 {[%clk 0:00:13.4]} 46. Kb2
{[%clk 0:00:13.8]} 46... Kf7 {[%clk 0:00:11.5]} 47. a4 {[%clk 0:00:11.3]} 47...
Kg6 {[%clk 0:00:10.6]} 48. a5 {[%clk 0:00:09.7]} 48... Kf7 {[%clk 0:00:09.8]}
49. a6 {[%clk 0:00:08.6]} 49... Kg6 {[%clk 0:00:07.9]} 50. Kc2 {[%clk 0:00:08]}
50... Kf7 {[%clk 0:00:07.1]} 51. Kd2 {[%clk 0:00:07.5]} 51... Kg6 {[%clk
0:00:06.6]} 52. Ke3 {[%clk 0:00:06.7]} 52... Kf7 {[%clk 0:00:06.2]} 53. Kd4
{[%clk 0:00:05.1]} 53... Kg6 {[%clk 0:00:05.6]} 54. f5+ {[%clk 0:00:04.3]} 54...
exf5 {[%clk 0:00:04.3]} 55. Ke3 {[%clk 0:00:02.3]} 55... Kf7 {[%clk 0:00:01.6]}
0-1

[Event "Live Chess"]
[Site "Chess.com"]
[Date "2023.05.20"]
[Round "-"]
[White "Chesscoach_Golichenko"]
[Black "NAZRIZ1977"]
[Result "1-0"]
[WhiteElo "2654"]
[BlackElo "2150"]
[TimeControl "300"]
[EndTime "11:13:54 PDT"]
[Termination "Chesscoach_Golichenko won by resignation"]

1. d4 {[%clk 0:04:57.8]} 1... Nf6 {[%clk 0:04:58.3]} 2. c4 {[%clk 0:04:55.1]}
2... c5 {[%clk 0:04:57.6]} 3. d5 {[%clk 0:04:52.6]} 3... b5 {[%clk 0:04:57.2]}
4. f3 {[%clk 0:04:49.5]} 4... g6 {[%clk 0:04:55.7]} 5. e4 {[%clk 0:04:41.9]}
5... d6 {[%clk 0:04:54.6]} 6. cxb5 {[%clk 0:04:33.9]} 6... a6 {[%clk 0:04:53.5]}
7. Nc3 {[%clk 0:04:30.7]} 7... Bg7 {[%clk 0:04:52.1]} 8. Bc4 {[%clk 0:04:28.8]}
8... O-O {[%clk 0:04:51]} 9. Nge2 {[%clk 0:04:27.9]} 9... axb5 {[%clk
0:04:50.5]} 10. Bxb5 {[%clk 0:04:26.6]} 10... Ba6 {[%clk 0:04:50.1]} 11. Bxa6
{[%clk 0:04:23.9]} 11... Nxa6 {[%clk 0:04:48.6]} 12. O-O {[%clk 0:04:23.8]}
12... Qa5 {[%clk 0:04:48.1]} 13. Rb1 {[%clk 0:04:17.9]} 13... Rfb8 {[%clk
0:04:47.1]} 14. h3 {[%clk 0:04:09.9]} 14... Ne8 {[%clk 0:04:46.5]} 15. Kh2
{[%clk 0:04:07.2]} 15... Nec7 {[%clk 0:04:45.8]} 16. Bd2 {[%clk 0:04:04.8]}
16... Nb5 {[%clk 0:04:44.9]} 17. Nxb5 {[%clk 0:03:56.8]} 17... Qxb5 {[%clk
0:04:44]} 18. Bc3 {[%clk 0:03:56.4]} 18... Nb4 {[%clk 0:04:39.6]} 19. a3 {[%clk
0:03:49.6]} 19... Nd3 {[%clk 0:04:33.7]} 20. f4 {[%clk 0:03:42.2]} 20... c4
{[%clk 0:04:23.7]} 21. Rf3 {[%clk 0:03:09.9]} 21... Bxc3 {[%clk 0:04:20.5]} 22.
Nxc3 {[%clk 0:03:07.6]} 22... Qb3 {[%clk 0:04:17.9]} 23. Qf1 {[%clk 0:02:23.3]}
23... Qc2 {[%clk 0:04:03.1]} 24. f5 {[%clk 0:02:07.2]} 24... Ne5 {[%clk
0:03:42.2]} 25. Rf2 {[%clk 0:02:01.3]} 25... Qd3 {[%clk 0:03:40.7]} 26. Qe1
{[%clk 0:01:54.2]} 26... Qd4 {[%clk 0:03:24.6]} 27. Rd1 {[%clk 0:01:46.7]} 27...
Nd3 {[%clk 0:03:18.6]} 28. Rfd2 {[%clk 0:01:21.6]} 28... Qe5+ {[%clk 0:03:15.4]}
29. Qg3 {[%clk 0:01:20.7]} 29... Rxb2 {[%clk 0:03:07]} 30. Qxe5 {[%clk
0:01:16.6]} 30... Nxe5 {[%clk 0:03:02.3]} 31. Rxb2 {[%clk 0:01:15]} 1-0

[Event "Live Chess"]
[Site "Chess.com"]
[Date "2023.05.20"]
[Round "-"]
[White "LiamBellwood"]
[Black "ramses-IIG"]
[Result "1-0"]
[WhiteElo "2079"]
[BlackElo "785"]
[TimeControl "300"]
[EndTime "11:13:54 PDT"]
[Termination "LiamBellwood won by resignation"]

1. d4 {[%clk 0:04:59.7]} 1... d5 {[%clk 0:04:58]} 2. Nc3 {[%clk 0:04:59.6]} 2...
Nc6 {[%clk 0:04:57.1]} 3. Bf4 {[%clk 0:04:59.5]} 3... e6 {[%clk 0:04:53.1]} 4.
Nb5 {[%clk 0:04:58.8]} 4... e5 {[%clk 0:04:48]} 5. dxe5 {[%clk 0:04:56]} 5...
Nxe5 {[%clk 0:04:47.1]} 6. Bxe5 {[%clk 0:04:51.9]} 6... c6 {[%clk 0:04:45.8]} 7.
Nc7+ {[%clk 0:04:50.2]} 7... Ke7 {[%clk 0:04:40.3]} 8. Nxa8 {[%clk 0:04:49.6]}
8... Qd6 {[%clk 0:04:39.1]} 9. Bxd6+ {[%clk 0:04:48.9]} 9... Kf6 {[%clk
0:04:37.6]} 10. e4 {[%clk 0:04:48.8]} 10... d4 {[%clk 0:04:36.1]} 11. Qxd4+
{[%clk 0:04:47.7]} 11... Kg5 {[%clk 0:04:33.8]} 12. f4+ {[%clk 0:04:43.7]} 12...
Kg6 {[%clk 0:04:21.3]} 13. Qe5 {[%clk 0:04:43]} 13... f5 {[%clk 0:04:14.9]} 14.
exf5+ {[%clk 0:04:41.1]} 1-0

[Event "Live Chess"]
[Site "Chess.com"]
[Date "2023.05.20"]
[Round "-"]
[White "luckywookie"]
[Black "raminguy"]
[Result "0-1"]
[WhiteElo "729"]
[BlackElo "1977"]
[TimeControl "300"]
[EndTime "11:13:56 PDT"]
[Termination "raminguy won by resignation"]

1. e4 {[%clk 0:04:57.5]} 1... e5 {[%clk 0:04:59.2]} 2. Nf3 {[%clk 0:04:55.3]}
2... Nc6 {[%clk 0:04:58.8]} 3. d3 {[%clk 0:04:44.5]} 3... Nf6 {[%clk 0:04:57.2]}
4. Be3 {[%clk 0:04:43.1]} 4... d5 {[%clk 0:04:56.2]} 5. Nbd2 {[%clk 0:04:39.2]}
5... dxe4 {[%clk 0:04:52.7]} 6. dxe4 {[%clk 0:04:36.9]} 6... Bb4 {[%clk
0:04:49.9]} 7. c3 {[%clk 0:04:35]} 7... Ba5 {[%clk 0:04:48.3]} 8. b4 {[%clk
0:04:32.9]} 8... Bb6 {[%clk 0:04:47.4]} 9. Bxb6 {[%clk 0:04:25.3]} 9... axb6
{[%clk 0:04:47.3]} 10. b5 {[%clk 0:04:24.3]} 10... Ne7 {[%clk 0:04:42.6]} 11.
Nxe5 {[%clk 0:04:08.5]} 11... O-O {[%clk 0:04:41.2]} 12. Bc4 {[%clk 0:04:02.8]}
12... Qd6 {[%clk 0:04:28]} 13. Nxf7 {[%clk 0:03:47.6]} 13... Rxf7 {[%clk
0:04:26.3]} 14. Qb3 {[%clk 0:03:46.3]} 14... Ned5 {[%clk 0:04:15.2]} 15. Bxd5
{[%clk 0:03:39]} 15... Nxd5 {[%clk 0:04:13.2]} 16. O-O-O {[%clk 0:03:37.7]}
16... Nf6 {[%clk 0:04:01.6]} 17. Nf3 {[%clk 0:03:31]} 17... Qf4+ {[%clk
0:03:56.7]} 18. Rd2 {[%clk 0:03:23.9]} 18... Nxe4 {[%clk 0:03:49.4]} 19. Rd1
{[%clk 0:03:20.7]} 19... Nxd2 {[%clk 0:03:48.2]} 20. Rxd2 {[%clk 0:03:15]} 20...
Bf5 {[%clk 0:03:46.8]} 21. g3 {[%clk 0:03:06.1]} 21... Qxf3 {[%clk 0:03:45.4]}
22. Rd7 {[%clk 0:03:01.2]} 22... Bxd7 {[%clk 0:03:43.6]} 23. Qd1 {[%clk
0:02:52.4]} 23... Qxc3+ {[%clk 0:03:40.3]} 24. Qc2 {[%clk 0:02:49.9]} 24...
Qxc2+ {[%clk 0:03:34.9]} 25. Kxc2 {[%clk 0:02:48.4]} 25... Rxf2+ {[%clk
0:03:34.6]} 26. Kd1 {[%clk 0:02:44.2]} 26... Raxa2 {[%clk 0:03:33.3]} 0-1